{"text_format":"1","workbook":"xlsx","n_sheets":6,"sheets":["作成フォーム","依頼書①","依頼書②","依頼書③","依頼書④","手形"],"not_rendered":{"charts":0,"images":0,"macros":0,"external_links":0,"defined_names":6,"comments":0,"pivot_tables":0},"unopened":[],"bounds":{"document_bytes":16777216,"sheet_cells":100000,"rows_first":2000,"rows_last":500,"rows_between":2000,"halvings":0,"cell_chars":16384,"cell_head_chars":4096},"cells_cut":0,"cells_raw":0,"read":"whole","date_system":"1900"}

{"sheet":"作成フォーム","index":0,"n_rows":143,"n_cols":36,"rows_kept":143,"cut":false,"hidden":false,"merged":[[127,4,127,62],[128,4,128,62],[129,4,129,62],[130,4,130,62],[131,4,131,62],[142,33,142,57],[107,48,107,60],[109,4,109,11],[109,12,109,32],[111,4,111,11],[111,12,111,32],[111,33,111,66],[96,4,97,11],[99,4,99,11],[99,12,99,23],[99,24,99,44],[107,4,107,11],[107,12,107,47],[85,4,85,11],[85,12,85,23],[85,24,85,61],[87,4,89,61],[90,4,90,60],[92,2,95,66],[103,12,103,47],[101,4,101,11],[101,12,101,47],[105,4,105,11],[105,12,105,47],[81,29,81,34],[81,35,81,47],[83,4,83,11],[83,12,83,23],[83,24,83,57],[84,4,84,11],[84,12,84,23],[84,24,84,61],[74,4,76,58],[77,4,77,11],[77,12,77,23],[78,4,78,11],[78,12,78,23],[80,4,81,11],[80,12,80,28],[80,29,80,34],[80,35,80,47],[81,12,81,28],[70,4,70,23],[70,24,70,29],[71,4,71,23],[71,24,71,29],[72,4,72,23],[72,24,72,29],[65,4,65,23],[65,24,65,29],[66,4,66,23],[66,24,66,29],[68,1,68,69],[69,4,69,23],[69,24,69,29],[67,4,67,23],[67,24,67,29],[62,4,62,23],[62,24,62,29],[63,4,63,23],[63,24,63,29],[64,4,64,23],[64,24,64,29],[59,4,59,23],[59,24,59,29],[60,4,60,23],[60,24,60,29],[61,4,61,23],[61,24,61,29],[52,4,52,11],[52,12,52,23],[54,4,56,58],[57,4,57,23],[57,24,57,29],[58,4,58,23],[58,24,58,29],[49,4,49,11],[49,12,49,23],[49,24,49,44],[50,4,50,11],[50,12,50,23],[51,4,51,11],[51,12,51,23],[28,25,28,44],[28,45,28,54],[39,4,39,11],[39,12,39,23],[41,4,43,58],[44,4,44,11],[44,12,44,47],[46,4,48,58],[36,4,36,11],[36,12,36,54],[37,4,37,11],[37,12,37,23],[38,4,38,11],[38,12,38,23],[26,4,26,11],[26,12,26,34],[27,4,27,11],[27,12,27,22],[27,23,27,56],[103,4,103,11],[23,4,23,11],[23,12,23,34],[23,35,24,69],[24,4,25,11],[24,12,24,17],[24,18,24,34],[25,12,25,17],[25,18,25,34],[25,35,25,66],[30,4,32,58],[33,4,33,11],[33,12,33,24],[34,4,34,11],[34,12,34,24],[35,4,35,11],[35,12,35,54],[28,4,28,11],[28,12,28,24],[13,4,13,11],[13,12,13,28],[15,4,17,58],[18,4,18,11],[18,12,18,47],[20,4,22,58],[1,2,4,60],[5,4,7,58],[8,4,8,11],[8,12,8,28],[8,29,8,58],[10,4,12,58]]}
[]
[null,null,"Ⅰ．信用状付輸出為替買取/取立依頼書　作成フォーム"]
[]
[]
[]
[null,null,null,null,"①書類を店頭へ提出頂く日付を入力してください。"]
[]
[]
[null,null,null,null,"ご依頼日",null,null,null,null,null,null,null,null,null,null,null,null,null,null,null,null,null,null,null,null,null,null,null,null,"　（○○○○／△△／××の形で入力してください。）"]
[]
[null,null,null,null,"②「買取」「資金受領後買取」「取立」の取組区分を選択してください。"]
[]
[]
[null,null,null,null,"取組区分"]
[]
[null,null,null,null,"③貴社名を英文で入力してください。"]
[]
[]
[null,null,null,null,"ご依頼人名"]
[]
[null,null,null,null,"④「手形情報」および「建値」を入力してください。"]
[]
[]
[null,null,null,null,"手形番号"]
[null,null,null,null,"手形金額",null,null,null,null,null,null,null,"通貨",null,null,null,null,null,"金額"]
[null,null,null,null,null,null,null,null,null,null,null,null,null,null,null,null,null,null,null,null,null,null,null,null,null,null,null,null,null,null,null,null,null,null,null,"※「金額」については、通貨にかかわらず\n　　小数点以下第2位まで表示されます。"]
[null,null,null,null,"期日"]
[null,null,null,null,"ＤＵＥ　ＤＡＴＥ",null,null,null,null,null,null,null,null,null,null,null,null,null,null,null,null,null,null,"期日に「○○　DAYS FROM  B/L DATE」を入力した場合のみ入力してください。\n　　（○○○○／△△／××の形で入力してください。）"]
[null,null,null,null,"建値",null,null,null,null,null,null,null,null,null,null,null,null,null,null,null,null,null,null,null,null," 「その他」の場合、建値を入力してください。→"]
[]
[null,null,null,null,"⑤「信用状情報」を入力してください。"]
[]
[]
[null,null,null,null,"信用状番号"]
[null,null,null,null,"信用状原本"]
[null,null,null,null,"発行銀行"]
[null,null,null,null,"発行依頼人"]
[null,null,null,null,"発行日",null,null,null,null,null,null,null,null,null,null,null,null,null,null,null,null,null,null,null," ○○○○／△△／××の形で入力してください。"]
[null,null,null,null,"有効期限",null,null,null,null,null,null,null,null,null,null,null,null,null,null,null,null,null,null,null," ○○○○／△△／××の形で入力してください。"]
[null,null,null,null,"船積期限",null,null,null,null,null,null,null,null,null,null,null,null,null,null,null,null,null,null,null," ○○○○／△△／××の形で入力してください。"]
[]
[null,null,null,null,"⑥「商品名」を入力してください。"]
[]
[]
[null,null,null,null,"商品名"]
[]
[null,null,null,null,"⑦「船荷証券（Ｂ/Ｌ）情報」を入力してください。"]
[]
[]
[null,null,null,null,"船積日",null,null,null,null,null,null,null,null,null,null,null,null,null,null,null,null,null,null,null," ○○○○／△△／××の形で入力してください。"]
[null,null,null,null,"船名"]
[null,null,null,null,"積出地"]
[null,null,null,null,"仕向地"]
[]
[null,null,null,null,"⑧添付書類の通数を入力してください。"]
[]
[]
[null,null,null,null,"書類名",null,null,null,null,null,null,null,null,null,null,null,null,null,null,null,null,null,null,null,"通数"]
[null,null,null,null,"　　　Draft (Bill of Exchange)"]
[null,null,null,null,"　　　Commercial Invoice"]
[null,null,null,null,"　　　Bill of Lading ・Air Waybill"]
[null,null,null,null,"　　　Insurance Policy/ Certificate"]
[null,null,null,null,"　　　Packing List"]
[null,null,null,null,"　　　Inspection Certificate"]
[null,null,null,null,"　　　Certificate of Origin"]
[null,null,null,null,"　　　Certificate"]
[null,null,null,null,"　　　Non-Negotiable B/L"]
[null,null,null,null,"　　　Letter of Guarantee (念書）"]
[null,"       上記以外の添付書類がある場合、書類名および通数を入力してください。"]
[null,null,null,null,"書類名",null,null,null,null,null,null,null,null,null,null,null,null,null,null,null,null,null,null,null,"通数"]
[]
[]
[]
[]
[null,null,null,null,"⑨「代り金決済情報」を入力してください。"]
[]
[]
[null,null,null,null,"代り金受領方法"]
[null,null,null,null,"予約番号",null,null,null,null,null,null,null,null,null,null,null,null,null,null,null,null,null,null,null," 「代り金受領方法」に「円貨払（予約）」を選択された場合のみ、予約番号を入力してください。"]
[]
[null,null,null,null,"入金口座",null,null,null,null,null,null,null,"口座種類",null,null,null,null,null,null,null,null,null,null,null,null,null,null,null,null,"店番",null,null,null,null,null,"口座番号"]
[]
[]
[null,null,null,null,"輸出前貸",null,null,null,null,null,null,null,null,null,null,null,null,null,null,null,null,null,null,null,"「あり」「なし」どちらかを選択してください。"]
[null,null,null,null,"期日",null,null,null,null,null,null,null,null,null,null,null,null,null,null,null,null,null,null,null," 輸出前貸「あり」を選択された場合に○○○○／△△／××の形で入力してください。"]
[null,null,null,null,"金額",null,null,null,null,null,null,null,null,null,null,null,null,null,null,null,null,null,null,null," 輸出前貸「あり」を選択された場合に入力してください。"]
[]
[null,null,null,null,"⑩特別指図事項があれば入力してください。（すべて英文で入力してください。）"]
[]
[]
[]
[]
[null,null,"Ⅱ．手形　作成フォーム"]
[]
[]
[]
[]
[]
[]
[null,null,null,null,"振出日",null,null,null,null,null,null,null,null,null,null,null,null,null,null,null,null,null,null,null," ○○○○／△△／××の形で入力してください。"]
[]
[null,null,null,null,"振出地"]
[]
[null,null,null,null,"輸入者"]
[]
[null,null,null,null,"LC発行銀行"]
[]
[null,null,null,null,"名宛人"]
[]
[null,null,null,null,"期日"]
[]
[null,null,null,null,"B/L DATE",null,null,null,null,null,null,null,null,null,null,null,null,null,null,null,null,null,null,null,null,null,null,null,null,null,null,null,null,"「期日」が”○○ DAYS FROM  B/L DATE ”の場合、B/L DATEを入力してください。"]
[]
[]
[]
[]
[]
[]
[]
[]
[]
[]
[]
[]
[]
[]
[]
[]
[null,null,null,null,"　　　（１）各フォーム入力後、依頼書①～④を各１部、手形を１部印刷してください。\n　　"]
[null,null,null,null,"　　　（２）依頼書①②の「ご依頼人氏名（商号・代表者）」欄に記名の上、お届印を押印願います。"]
[null,null,null,null,"　　　（３）手形の右下に署名いただき（ＦＩＲＳＴ、ＳＥＣＯＮＤの合計２か所）、「ＲＥＶＥＮＵＥ　ＳＴＡＭＰ欄」に収入\n　　　　　 印紙を貼付してください。"]
[null,null,null,null,"　　　（４）お取引店の店頭に依頼書、手形とともに輸出書類をご提出ください。"]
[]
[]
[]
[]
[]
[]
[]
[]
[]
[]
[null,null,null,null,null,null,null,null,null,null,null,null,null,null,null,null,null,null,null,null,null,null,null,null,null,null,null,null,null,null,null,null,null," "]

{"sheet":"依頼書①","index":1,"n_rows":90,"n_cols":58,"rows_kept":90,"cut":false,"hidden":false,"merged":[[25,43,26,45],[25,46,26,57],[29,42,58,44],[45,24,45,41],[48,24,48,41],[0,0,1,60],[2,0,2,60],[8,34,10,37],[11,34,14,37],[11,38,12,59],[15,34,20,37],[11,2,11,33],[12,2,14,33],[15,2,15,16],[15,17,15,33],[16,17,20,21],[16,22,20,33],[16,2,17,16],[8,38,10,59],[13,38,14,43],[13,44,14,59],[17,39,17,43],[17,44,17,48],[17,49,17,58],[18,39,19,43],[18,44,19,48],[18,49,19,58],[5,2,6,36],[65,55,67,59],[31,57,32,59],[29,45,30,56],[29,57,30,59],[43,45,44,56],[41,57,42,59],[43,57,44,59],[31,45,32,56],[45,45,46,56],[55,45,56,56],[61,43,61,59],[53,45,54,56],[53,57,54,59],[55,57,56,59],[49,57,50,59],[45,6,45,23],[23,43,24,45],[23,46,24,57],[65,54,67,54],[47,45,48,56],[33,57,34,59],[35,57,36,59],[37,57,38,59],[36,6,36,41],[80,50,81,51],[80,52,81,53],[73,0,73,59],[78,40,79,59],[80,54,81,55],[80,44,81,45],[80,46,81,47],[71,2,71,41],[76,2,89,20],[76,40,77,59],[51,45,52,56],[62,47,64,59],[51,57,52,59],[49,45,50,56],[45,2,50,5],[57,45,58,56],[57,57,58,59],[48,6,48,23],[76,35,77,39],[78,35,79,39],[31,6,32,23],[65,43,67,46],[65,47,67,49],[65,50,67,50],[65,51,67,53],[34,6,35,41],[45,57,46,59],[47,57,48,59],[33,45,34,56],[35,45,36,56],[37,45,38,56],[39,45,40,56],[41,45,42,56],[40,30,41,41],[42,2,42,41],[43,2,44,41],[62,43,64,46],[46,6,47,23],[52,2,58,41],[60,2,61,41],[51,2,51,41],[49,6,50,23],[46,24,47,41],[49,24,50,41],[5,46,6,47],[5,48,6,60],[5,39,6,45],[18,2,18,16],[19,2,20,16],[21,34,28,37],[23,38,26,42],[39,6,39,17],[40,6,41,17],[21,2,22,21],[33,6,33,41],[29,2,41,5],[29,28,32,41],[29,24,32,27],[40,18,41,29],[39,57,40,59],[37,6,38,41],[39,30,39,41],[29,6,30,23],[5,37,6,38],[21,22,22,33],[23,22,28,33],[23,2,28,21],[39,18,39,29],[80,35,81,37],[82,35,83,39],[84,40,87,44],[84,45,87,49],[84,50,87,54],[84,55,87,59],[84,35,87,39],[82,40,83,44],[82,45,83,49],[82,50,83,54],[82,55,83,59],[80,48,81,49],[80,56,81,57],[80,58,81,59],[80,38,81,39],[80,40,81,41],[80,42,81,43]]}
["信用状付輸出為替買取/取立依頼書"]
[]
["APPLICATION FOR NEGOTIATION/COLLECTION　(WITH L/C)"]
[]
[null,null,"京都中央信用金庫　御中　"]
[null,null,"別に差し入れた外国為替取引約定書に基づき、下記信用状付輸出為替の",null,null,null,null,null,null,null,null,null,null,null,null,null,null,null,null,null,null,null,null,null,null,null,null,null,null,null,null,null,null,null,null,null,null,"【",null,{"$f":"作成フォーム!M14","v":0},null,null,null,null,null,null,"】",null,"を依頼します。"]
[]
[]
[null,null,null,null,null,null,null,null,null,null,null,null,null,null,null,null,null,null,null,null,null,null,null,null,null,null,null,null,null,null,null,null,null,null,"ご依頼日",null,null,null,{"$f":"作成フォーム!M9","v":"00:00:00"}]
[]
[]
[null,null,"お名前（英文）",null,null,null,null,null,null,null,null,null,null,null,null,null,null,null,null,null,null,null,null,null,null,null,null,null,null,null,null,null,null,null,"代り金\n受領方法",null,null,null,{"$f":"作成フォーム!M78","v":0}]
[null,null,{"$f":"作成フォーム!M19","v":0}]
[null,null,null,null,null,null,null,null,null,null,null,null,null,null,null,null,null,null,null,null,null,null,null,null,null,null,null,null,null,null,null,null,null,null,null,null,null,null,"予約番号",null,null,null,null,null,{"$f":"作成フォーム!M79","v":0}]
[]
[null,null,"手形番号(DRAFT NO)",null,null,null,null,null,null,null,null,null,null,null,null,null,null,"手形金額（DRAFT AMOUNT）",null,null,null,null,null,null,null,null,null,null,null,null,null,null,null,null,"入金\n口座"]
[null,null,{"$f":"作成フォーム!M24","v":0},null,null,null,null,null,null,null,null,null,null,null,null,null,null,{"$f":"作成フォーム!M26","v":0},null,null,null,null,{"$f":"(IF(作成フォーム!M26=\"USD\",TEXT(作成フォーム!S26,\"#,##0.00\"),ROUNDDOWN(作成フォーム!S26,0)))","v":0}]
[null,null,null,null,null,null,null,null,null,null,null,null,null,null,null,null,null,null,null,null,null,null,null,null,null,null,null,null,null,null,null,null,null,null,null,null,null,null,null,"口座種類",null,null,null,null,"店番",null,null,null,null,"口座番号"]
[null,null,"建値(TERMS)",null,null,null,null,null,null,null,null,null,null,null,null,null,null,null,null,null,null,null,null,null,null,null,null,null,null,null,null,null,null,null,null,null,null,null,null,{"$f":"作成フォーム!M82","v":0},null,null,null,null,{"$f":"作成フォーム!AD82","v":0},null,null,null,null,{"$f":"作成フォーム!AJ82","v":0}]
[null,null,{"$f":"IF(作成フォーム!M29=\"その他\",作成フォーム!AT29,作成フォーム!M29)","v":0}]
[]
[null,null,"期日（TENOR）",null,null,null,null,null,null,null,null,null,null,null,null,null,null,null,null,null,null,null,"DUE DATE",null,null,null,null,null,null,null,null,null,null,null,"輸出\n前貸"]
[]
[null,null,{"$f":"作成フォーム!M27","v":0},null,null,null,null,null,null,null,null,null,null,null,null,null,null,null,null,null,null,null,{"$f":"作成フォーム!M28","v":"00:00:00"},null,null,null,null,null,null,null,null,null,null,null,null,null,null,null,{"$f":"作成フォーム!M84","v":0},null,null,null,null,"期日",null,null,{"$f":"作成フォーム!M85","v":"00:00:00"}]
[]
[null,null,null,null,null,null,null,null,null,null,null,null,null,null,null,null,null,null,null,null,null,null,null,null,null,null,null,null,null,null,null,null,null,null,null,null,null,null,null,null,null,null,null,"金額",null,null,{"$f":"作成フォーム!M86","v":0}]
[]
[]
[]
[null,null,"L/C",null,null,null,"信用状番号(L/C NO)",null,null,null,null,null,null,null,null,null,null,null,null,null,null,null,null,null,"信用状\n原本",null,null,null,{"$f":"作成フォーム!M35","v":0},null,null,null,null,null,null,null,null,null,null,null,null,null,"添付\n書類",null,null,"書類名",null,null,null,null,null,null,null,null,null,null,null,"通数"]
[]
[null,null,null,null,null,null,{"$f":"作成フォーム!M34","v":0},null,null,null,null,null,null,null,null,null,null,null,null,null,null,null,null,null,null,null,null,null,null,null,null,null,null,null,null,null,null,null,null,null,null,null,null,null,null,"Draft (Bill of Exchange)",null,null,null,null,null,null,null,null,null,null,null,{"$f":"作成フォーム!Y59","v":0}]
[]
[null,null,null,null,null,null,"発行銀行(ISSUING BANK)",null,null,null,null,null,null,null,null,null,null,null,null,null,null,null,null,null,null,null,null,null,null,null,null,null,null,null,null,null,null,null,null,null,null,null,null,null,null,"Commercial Invoice",null,null,null,null,null,null,null,null,null,null,null,{"$f":"作成フォーム!Y60","v":0}]
[null,null,null,null,null,null,{"$f":"作成フォーム!M36","v":0}]
[null,null,null,null,null,null,null,null,null,null,null,null,null,null,null,null,null,null,null,null,null,null,null,null,null,null,null,null,null,null,null,null,null,null,null,null,null,null,null,null,null,null,null,null,null,"Bill of Lading ・Air Waybill",null,null,null,null,null,null,null,null,null,null,null,{"$f":"作成フォーム!Y61","v":0}]
[null,null,null,null,null,null,"発行依頼人（APPLICANT）"]
[null,null,null,null,null,null,{"$f":"作成フォーム!M37","v":0},null,null,null,null,null,null,null,null,null,null,null,null,null,null,null,null,null,null,null,null,null,null,null,null,null,null,null,null,null,null,null,null,null,null,null,null,null,null,"Insurance Policy/ Certificate",null,null,null,null,null,null,null,null,null,null,null,{"$f":"作成フォーム!Y62","v":0}]
[]
[null,null,null,null,null,null,"発行日（ISSUE DATE）",null,null,null,null,null,null,null,null,null,null,null,"有効期限（EXPIRY DATE）",null,null,null,null,null,null,null,null,null,null,null,"船積期限（LATEST SHIPPING DATE）",null,null,null,null,null,null,null,null,null,null,null,null,null,null,"Packing List",null,null,null,null,null,null,null,null,null,null,null,{"$f":"作成フォーム!Y63","v":0}]
[null,null,null,null,null,null,{"$f":"作成フォーム!M38","v":"00:00:00"},null,null,null,null,null,null,null,null,null,null,null,{"$f":"作成フォーム!M39","v":"00:00:00"},null,null,null,null,null,null,null,null,null,null,null,{"$f":"作成フォーム!M40","v":"00:00:00"}]
[null,null,null,null,null,null,null,null,null,null,null,null,null,null,null,null,null,null,null,null,null,null,null,null,null,null,null,null,null,null,null,null,null,null,null,null,null,null,null,null,null,null,null,null,null,"Inspection Certificate",null,null,null,null,null,null,null,null,null,null,null,{"$f":"作成フォーム!Y64","v":0}]
[null,null,"商品名（MERCHANDISE）"]
[null,null,{"$f":"作成フォーム!M45","v":0},null,null,null,null,null,null,null,null,null,null,null,null,null,null,null,null,null,null,null,null,null,null,null,null,null,null,null,null,null,null,null,null,null,null,null,null,null,null,null,null,null,null,"Certificate of Origin",null,null,null,null,null,null,null,null,null,null,null,{"$f":"作成フォーム!Y65","v":0}]
[]
[null,null,"B/L",null,null,null,"船積日(SHIPPING　DATE)",null,null,null,null,null,null,null,null,null,null,null,null,null,null,null,null,null,"船名（CARRYING VESSEL）",null,null,null,null,null,null,null,null,null,null,null,null,null,null,null,null,null,null,null,null,"Certificate",null,null,null,null,null,null,null,null,null,null,null,{"$f":"作成フォーム!Y66","v":0}]
[null,null,null,null,null,null,{"$f":"作成フォーム!M50","v":"00:00:00"},null,null,null,null,null,null,null,null,null,null,null,null,null,null,null,null,null,{"$f":"作成フォーム!M51","v":0}]
[null,null,null,null,null,null,null,null,null,null,null,null,null,null,null,null,null,null,null,null,null,null,null,null,null,null,null,null,null,null,null,null,null,null,null,null,null,null,null,null,null,null,null,null,null,"Non-Negotiable B/L",null,null,null,null,null,null,null,null,null,null,null,{"$f":"作成フォーム!Y67","v":0}]
[null,null,null,null,null,null,"積出地（PORT OF LOADING）",null,null,null,null,null,null,null,null,null,null,null,null,null,null,null,null,null,"仕向地（DESTINATION）"]
[null,null,null,null,null,null,{"$f":"作成フォーム!M52","v":0},null,null,null,null,null,null,null,null,null,null,null,null,null,null,null,null,null,{"$f":"作成フォーム!M53","v":0},null,null,null,null,null,null,null,null,null,null,null,null,null,null,null,null,null,null,null,null,"Letter of Guarantee (念書)",null,null,null,null,null,null,null,null,null,null,null,{"$f":"作成フォーム!Y68","v":0}]
[]
[null,null,"Special Instructions",null,null,null,null,null,null,null,null,null,null,null,null,null,null,null,null,null,null,null,null,null,null,null,null,null,null,null,null,null,null,null,null,null,null,null,null,null,null,null,null,null,null,{"$f":"作成フォーム!E71","v":0},null,null,null,null,null,null,null,null,null,null,null,{"$f":"作成フォーム!Y71","v":0}]
[null,null,{"$f":"作成フォーム!E91","v":0}]
[null,null,null,null,null,null,null,null,null,null,null,null,null,null,null,null,null,null,null,null,null,null,null,null,null,null,null,null,null,null,null,null,null,null,null,null,null,null,null,null,null,null,null,null,null,{"$f":"作成フォーム!E72","v":0},null,null,null,null,null,null,null,null,null,null,null,{"$f":"作成フォーム!Y72","v":0}]
[]
[null,null,null,null,null,null,null,null,null,null,null,null,null,null,null,null,null,null,null,null,null,null,null,null,null,null,null,null,null,null,null,null,null,null,null,null,null,null,null,null,null,null,null,null,null,{"$f":"作成フォーム!E73","v":0},null,null,null,null,null,null,null,null,null,null,null,{"$f":"作成フォーム!Y73","v":0}]
[]
[]
[]
[]
[null,null,"　ご依頼人氏名（商号・代表者）"]
[null,null,null,null,null,null,null,null,null,null,null,null,null,null,null,null,null,null,null,null,null,null,null,null,null,null,null,null,null,null,null,null,null,null,null,null,null,null,null,null,null,null,null,"当金庫使用欄"]
[null,null,null,null,null,null,null,null,null,null,null,null,null,null,null,null,null,null,null,null,null,null,null,null,null,null,null,null,null,null,null,null,null,null,null,null,null,null,null,null,null,null,null,"取組日",null,null,null,"西暦　　　　年　　月　　日"]
[]
[]
[null,null,null,null,null,null,null,null,null,null,null,null,null,null,null,null,null,null,null,null,null,null,null,null,null,null,null,null,null,null,null,null,null,null,null,null,null,null,null,null,null,null,null,"取組番号",null,null,null,"001",null,null,"-","BBL\nEBC",null,null,"-"]
[]
[]
[]
[]
[]
[null,null,"※1枚目と2枚目にお届印を押印願います。"]
[]
["-----------------------------------------------------  以下当金庫使用欄  ----------------------------------------------------"]
[]
[]
[null,null,"市場国際部受付印",null,null,null,null,null,null,null,null,null,null,null,null,null,null,null,null,null,null,null,null,null,null,null,null,null,null,null,null,null,null,null,null,"受付店"]
[]
[null,null,null,null,null,null,null,null,null,null,null,null,null,null,null,null,null,null,null,null,null,null,null,null,null,null,null,null,null,null,null,null,null,null,null,"受付日",null,null,null,null,"西暦　　　　　　年　　　月　　　日"]
[]
[null,null,null,null,null,null,null,null,null,null,null,null,null,null,null,null,null,null,null,null,null,null,null,null,null,null,null,null,null,null,null,null,null,null,null,"店番",null,null,null,null,null,null,null,null,"CIF"]
[]
[null,null,null,null,null,null,null,null,null,null,null,null,null,null,null,null,null,null,null,null,null,null,null,null,null,null,null,null,null,null,null,null,null,null,null,"支店長印",null,null,null,null,"検印",null,null,null,null,"Ａ／Ｃ実施",null,null,null,null,"印鑑照合",null,null,null,null,"係印"]
[]
[]
[]
[]
[]
[null,null,null,null,null,null,null,null,null,null,null,null,null,null,null,null,null,null,null,null,null,null,null,null,null,null,null,null,null,null,null,null,null,null,null,null,"※取立の場合、支店長印不要。２枚目にも押印要。"]
[null,null,null,null,null,null,null,null,null,null,null,null,null,null,null,null,null,null,null,null,null,null,null,null,null,null,null,null,null,null,null,null,null,null,null,null,"※印鑑照合：「外国為替署名印鑑届」と照合。"]

{"sheet":"依頼書②","index":2,"n_rows":90,"n_cols":58,"rows_kept":90,"cut":false,"hidden":false,"merged":[[29,2,41,5],[29,24,32,27],[49,6,50,23],[49,24,50,41],[40,6,41,17],[40,18,41,29],[40,30,41,41],[41,45,42,56],[47,45,48,56],[36,6,36,41],[37,6,38,41],[39,6,39,17],[39,18,39,29],[45,6,45,23],[45,24,45,41],[35,45,36,56],[39,45,40,56],[39,30,39,41],[46,6,47,23],[46,24,47,41],[45,2,50,5],[29,6,30,23],[31,6,32,23],[49,45,50,56],[5,37,6,38],[5,39,6,45],[11,34,14,37],[11,38,12,59],[13,38,14,43],[5,46,6,47],[5,48,6,60],[13,44,14,59],[17,39,17,43],[0,0,1,60],[2,0,2,60],[8,34,10,37],[21,34,28,37],[8,38,10,59],[5,2,6,36],[15,34,20,37],[15,17,15,33],[16,2,17,16],[16,17,20,21],[16,22,20,33],[15,2,15,16],[11,2,11,33],[12,2,14,33],[21,2,22,21],[21,22,22,33],[23,2,28,21],[23,22,28,33],[18,2,18,16],[17,44,17,48],[17,49,17,58],[18,39,19,43],[18,44,19,48],[18,49,19,58],[82,55,83,59],[84,35,87,39],[51,45,52,56],[51,57,52,59],[60,2,61,41],[61,43,61,59],[65,54,67,54],[65,55,67,59],[65,43,67,46],[55,57,56,59],[53,45,54,56],[53,57,54,59],[55,45,56,56],[57,57,58,59],[62,43,64,46],[62,47,64,59],[80,38,81,39],[80,40,81,41],[80,42,81,43],[80,44,81,45],[84,11,87,14],[82,35,83,39],[82,40,83,44],[82,45,83,49],[82,50,83,54],[29,28,32,41],[29,45,30,56],[19,2,20,16],[23,38,26,42],[43,2,44,41],[65,47,67,49],[65,50,67,50],[82,15,83,26],[82,27,83,30],[71,2,71,41],[76,40,77,59],[76,11,77,30],[48,24,48,41],[80,46,81,47],[43,45,44,56],[31,45,32,56],[29,42,58,44],[57,45,58,56],[51,2,51,41],[52,2,58,41],[73,0,73,59],[82,11,83,14],[42,2,42,41],[49,57,50,59],[23,46,24,57],[25,43,26,45],[25,46,26,57],[43,57,44,59],[45,45,46,56],[45,57,46,59],[47,57,48,59],[29,57,30,59],[23,43,24,45],[31,57,32,59],[33,45,34,56],[33,57,34,59],[41,57,42,59],[35,57,36,59],[37,45,38,56],[37,57,38,59],[39,57,40,59],[84,40,87,44],[84,45,87,49],[84,50,87,54],[84,55,87,59],[76,35,77,39],[78,35,79,39],[80,35,81,37],[33,6,33,41],[34,6,35,41],[48,6,48,23],[65,51,67,53],[84,15,87,26],[84,27,87,30],[78,40,79,59],[78,11,79,14],[78,15,79,30],[80,48,81,49],[80,54,81,55],[80,56,81,57],[80,58,81,59],[80,11,81,14],[80,15,81,30],[80,50,81,51],[80,52,81,53]]}
["信用状付輸出為替買取/取立依頼書"]
[]
["APPLICATION FOR NEGOTIATION/COLLECTION　(WITH L/C)"]
[]
[null,null,"京都中央信用金庫　御中　"]
[null,null,"別に差し入れた外国為替取引約定書に基づき、下記信用状付輸出為替の",null,null,null,null,null,null,null,null,null,null,null,null,null,null,null,null,null,null,null,null,null,null,null,null,null,null,null,null,null,null,null,null,null,null,"【",null,{"$f":"作成フォーム!M14","v":0},null,null,null,null,null,null,"】",null,"を依頼します。"]
[]
[]
[null,null,null,null,null,null,null,null,null,null,null,null,null,null,null,null,null,null,null,null,null,null,null,null,null,null,null,null,null,null,null,null,null,null,"ご依頼日",null,null,null,{"$f":"作成フォーム!M9","v":"00:00:00"}]
[]
[]
[null,null,"お名前（英文）",null,null,null,null,null,null,null,null,null,null,null,null,null,null,null,null,null,null,null,null,null,null,null,null,null,null,null,null,null,null,null,"代り金\n受領方法",null,null,null,{"$f":"作成フォーム!M78","v":0}]
[null,null,{"$f":"作成フォーム!M19","v":0}]
[null,null,null,null,null,null,null,null,null,null,null,null,null,null,null,null,null,null,null,null,null,null,null,null,null,null,null,null,null,null,null,null,null,null,null,null,null,null,"予約番号",null,null,null,null,null,{"$f":"作成フォーム!M79","v":0}]
[]
[null,null,"手形番号(DRAFT NO)",null,null,null,null,null,null,null,null,null,null,null,null,null,null,"手形金額（DRAFT AMOUNT）",null,null,null,null,null,null,null,null,null,null,null,null,null,null,null,null,"入金\n口座"]
[null,null,{"$f":"作成フォーム!M24","v":0},null,null,null,null,null,null,null,null,null,null,null,null,null,null,{"$f":"作成フォーム!M26","v":0},null,null,null,null,{"$f":"(IF(作成フォーム!M26=\"USD\",TEXT(作成フォーム!S26,\"#,##0.00\"),ROUNDDOWN(作成フォーム!S26,0)))","v":0}]
[null,null,null,null,null,null,null,null,null,null,null,null,null,null,null,null,null,null,null,null,null,null,null,null,null,null,null,null,null,null,null,null,null,null,null,null,null,null,null,"口座種類",null,null,null,null,"店番",null,null,null,null,"口座番号"]
[null,null,"建値(TERMS)",null,null,null,null,null,null,null,null,null,null,null,null,null,null,null,null,null,null,null,null,null,null,null,null,null,null,null,null,null,null,null,null,null,null,null,null,{"$f":"作成フォーム!M82","v":0},null,null,null,null,{"$f":"作成フォーム!AD82","v":0},null,null,null,null,{"$f":"作成フォーム!AJ82","v":0}]
[null,null,{"$f":"IF(作成フォーム!M29=\"その他\",作成フォーム!AT29,作成フォーム!M29)","v":0}]
[]
[null,null,"期日（TENOR）",null,null,null,null,null,null,null,null,null,null,null,null,null,null,null,null,null,null,null,"DUE DATE",null,null,null,null,null,null,null,null,null,null,null,"輸出\n前貸"]
[]
[null,null,{"$f":"作成フォーム!M27","v":0},null,null,null,null,null,null,null,null,null,null,null,null,null,null,null,null,null,null,null,{"$f":"作成フォーム!M28","v":"00:00:00"},null,null,null,null,null,null,null,null,null,null,null,null,null,null,null,{"$f":"作成フォーム!M84","v":0},null,null,null,null,"期日",null,null,{"$f":"作成フォーム!M85","v":"00:00:00"}]
[]
[null,null,null,null,null,null,null,null,null,null,null,null,null,null,null,null,null,null,null,null,null,null,null,null,null,null,null,null,null,null,null,null,null,null,null,null,null,null,null,null,null,null,null,"金額",null,null,{"$f":"作成フォーム!M86","v":0}]
[]
[]
[]
[null,null,"L/C",null,null,null,"信用状番号(L/C NO)",null,null,null,null,null,null,null,null,null,null,null,null,null,null,null,null,null,"信用状\n原本",null,null,null,{"$f":"作成フォーム!M35","v":0},null,null,null,null,null,null,null,null,null,null,null,null,null,"添付\n書類",null,null,"書類名",null,null,null,null,null,null,null,null,null,null,null,"通数"]
[]
[null,null,null,null,null,null,{"$f":"作成フォーム!M34","v":0},null,null,null,null,null,null,null,null,null,null,null,null,null,null,null,null,null,null,null,null,null,null,null,null,null,null,null,null,null,null,null,null,null,null,null,null,null,null,"Draft (Bill of Exchange)",null,null,null,null,null,null,null,null,null,null,null,{"$f":"作成フォーム!Y59","v":0}]
[]
[null,null,null,null,null,null,"発行銀行(ISSUING BANK)",null,null,null,null,null,null,null,null,null,null,null,null,null,null,null,null,null,null,null,null,null,null,null,null,null,null,null,null,null,null,null,null,null,null,null,null,null,null,"Commercial Invoice",null,null,null,null,null,null,null,null,null,null,null,{"$f":"作成フォーム!Y60","v":0}]
[null,null,null,null,null,null,{"$f":"作成フォーム!M36","v":0}]
[null,null,null,null,null,null,null,null,null,null,null,null,null,null,null,null,null,null,null,null,null,null,null,null,null,null,null,null,null,null,null,null,null,null,null,null,null,null,null,null,null,null,null,null,null,"Bill of Lading ・Air Waybill",null,null,null,null,null,null,null,null,null,null,null,{"$f":"作成フォーム!Y61","v":0}]
[null,null,null,null,null,null,"発行依頼人（APPLICANT）"]
[null,null,null,null,null,null,{"$f":"作成フォーム!M37","v":0},null,null,null,null,null,null,null,null,null,null,null,null,null,null,null,null,null,null,null,null,null,null,null,null,null,null,null,null,null,null,null,null,null,null,null,null,null,null,"Insurance Policy/ Certificate",null,null,null,null,null,null,null,null,null,null,null,{"$f":"作成フォーム!Y62","v":0}]
[]
[null,null,null,null,null,null,"発行日（ISSUE DATE）",null,null,null,null,null,null,null,null,null,null,null,"有効期限（EXPIRY DATE）",null,null,null,null,null,null,null,null,null,null,null,"船積期限（LATEST SHIPPING DATE）",null,null,null,null,null,null,null,null,null,null,null,null,null,null,"Packing List",null,null,null,null,null,null,null,null,null,null,null,{"$f":"作成フォーム!Y63","v":0}]
[null,null,null,null,null,null,{"$f":"作成フォーム!M38","v":"00:00:00"},null,null,null,null,null,null,null,null,null,null,null,{"$f":"作成フォーム!M39","v":"00:00:00"},null,null,null,null,null,null,null,null,null,null,null,{"$f":"作成フォーム!M40","v":"00:00:00"}]
[null,null,null,null,null,null,null,null,null,null,null,null,null,null,null,null,null,null,null,null,null,null,null,null,null,null,null,null,null,null,null,null,null,null,null,null,null,null,null,null,null,null,null,null,null,"Inspection Certificate",null,null,null,null,null,null,null,null,null,null,null,{"$f":"作成フォーム!Y64","v":0}]
[null,null,"商品名（MERCHANDISE）"]
[null,null,{"$f":"作成フォーム!M45","v":0},null,null,null,null,null,null,null,null,null,null,null,null,null,null,null,null,null,null,null,null,null,null,null,null,null,null,null,null,null,null,null,null,null,null,null,null,null,null,null,null,null,null,"Certificate of Origin",null,null,null,null,null,null,null,null,null,null,null,{"$f":"作成フォーム!Y65","v":0}]
[]
[null,null,"B/L",null,null,null,"船積日(SHIPPING　DATE)",null,null,null,null,null,null,null,null,null,null,null,null,null,null,null,null,null,"船名（CARRYING VESSEL）",null,null,null,null,null,null,null,null,null,null,null,null,null,null,null,null,null,null,null,null,"Certificate",null,null,null,null,null,null,null,null,null,null,null,{"$f":"作成フォーム!Y66","v":0}]
[null,null,null,null,null,null,{"$f":"作成フォーム!M50","v":"00:00:00"},null,null,null,null,null,null,null,null,null,null,null,null,null,null,null,null,null,{"$f":"作成フォーム!M51","v":0}]
[null,null,null,null,null,null,null,null,null,null,null,null,null,null,null,null,null,null,null,null,null,null,null,null,null,null,null,null,null,null,null,null,null,null,null,null,null,null,null,null,null,null,null,null,null,"Non-Negotiable B/L",null,null,null,null,null,null,null,null,null,null,null,{"$f":"作成フォーム!Y67","v":0}]
[null,null,null,null,null,null,"積出地（PORT OF LOADING）",null,null,null,null,null,null,null,null,null,null,null,null,null,null,null,null,null,"仕向地（DESTINATION）"]
[null,null,null,null,null,null,{"$f":"作成フォーム!M52","v":0},null,null,null,null,null,null,null,null,null,null,null,null,null,null,null,null,null,{"$f":"作成フォーム!M53","v":0},null,null,null,null,null,null,null,null,null,null,null,null,null,null,null,null,null,null,null,null,"Letter of Guarantee (念書)",null,null,null,null,null,null,null,null,null,null,null,{"$f":"作成フォーム!Y68","v":0}]
[]
[null,null,"Special Instructions",null,null,null,null,null,null,null,null,null,null,null,null,null,null,null,null,null,null,null,null,null,null,null,null,null,null,null,null,null,null,null,null,null,null,null,null,null,null,null,null,null,null,{"$f":"作成フォーム!E71","v":0},null,null,null,null,null,null,null,null,null,null,null,{"$f":"作成フォーム!Y71","v":0}]
[null,null,{"$f":"作成フォーム!E91","v":0}]
[null,null,null,null,null,null,null,null,null,null,null,null,null,null,null,null,null,null,null,null,null,null,null,null,null,null,null,null,null,null,null,null,null,null,null,null,null,null,null,null,null,null,null,null,null,{"$f":"作成フォーム!E72","v":0},null,null,null,null,null,null,null,null,null,null,null,{"$f":"作成フォーム!Y72","v":0}]
[]
[null,null,null,null,null,null,null,null,null,null,null,null,null,null,null,null,null,null,null,null,null,null,null,null,null,null,null,null,null,null,null,null,null,null,null,null,null,null,null,null,null,null,null,null,null,{"$f":"作成フォーム!E73","v":0},null,null,null,null,null,null,null,null,null,null,null,{"$f":"作成フォーム!Y73","v":0}]
[]
[]
[]
[]
[null,null,"　ご依頼人氏名（商号・代表者）"]
[null,null,null,null,null,null,null,null,null,null,null,null,null,null,null,null,null,null,null,null,null,null,null,null,null,null,null,null,null,null,null,null,null,null,null,null,null,null,null,null,null,null,null,"当金庫使用欄"]
[null,null,null,null,null,null,null,null,null,null,null,null,null,null,null,null,null,null,null,null,null,null,null,null,null,null,null,null,null,null,null,null,null,null,null,null,null,null,null,null,null,null,null,"取組日",null,null,null,"西暦　　　　年　　月　　日"]
[]
[]
[null,null,null,null,null,null,null,null,null,null,null,null,null,null,null,null,null,null,null,null,null,null,null,null,null,null,null,null,null,null,null,null,null,null,null,null,null,null,null,null,null,null,null,"取組番号",null,null,null,"001",null,null,"-","BBL\nEBC",null,null,"-"]
[]
[]
[]
[]
[]
[null,null,"※1枚目と2枚目にお届印を押印願います。"]
[]
["-----------------------------------------------------  以下当金庫使用欄  ----------------------------------------------------"]
[]
[]
[null,null,null,null,null,null,null,null,null,null,null,"市場国際部",null,null,null,null,null,null,null,null,null,null,null,null,null,null,null,null,null,null,null,null,null,null,null,"受付店"]
[]
[null,null,null,null,null,null,null,null,null,null,null,"受付日",null,null,null,"　西暦　　　　年　　　月　　　日",null,null,null,null,null,null,null,null,null,null,null,null,null,null,null,null,null,null,null,"受付日",null,null,null,null,"西暦　　　　　　年　　　月　　　日"]
[]
[null,null,null,null,null,null,null,null,null,null,null,"稟議番号",null,null,null,null,null,null,null,null,null,null,null,null,null,null,null,null,null,null,null,null,null,null,null,"店番",null,null,null,null,null,null,null,null,"CIF"]
[]
[null,null,null,null,null,null,null,null,null,null,null,"部長印",null,null,null,"検印",null,null,null,null,null,null,null,null,null,null,null,"係印",null,null,null,null,null,null,null,"支店長印",null,null,null,null,"検印",null,null,null,null,"Ａ／Ｃ実施",null,null,null,null,"印鑑照合",null,null,null,null,"係印"]
[]
[]
[]
[]
[]
[null,null,null,null,null,null,null,null,null,null,null,null,null,null,null,null,null,null,null,null,null,null,null,null,null,null,null,null,null,null,null,null,null,null,null,null,"※取立の場合、支店長印不要。"]
[null,null,null,null,null,null,null,null,null,null,null,null,null,null,null,null,null,null,null,null,null,null,null,null,null,null,null,null,null,null,null,null,null,null,null,null,"※印鑑照合：「外国為替署名印鑑届」と照合。"]

{"sheet":"依頼書③","index":3,"n_rows":82,"n_cols":58,"rows_kept":82,"cut":false,"hidden":false,"merged":[[15,2,15,16],[18,39,19,43],[37,6,38,41],[36,6,36,41],[15,17,15,33],[16,2,17,16],[16,17,20,21],[16,22,20,33],[18,2,18,16],[19,2,20,16],[15,34,20,37],[33,57,34,59],[37,57,38,59],[39,45,40,56],[39,57,40,59],[21,34,28,37],[21,2,22,21],[21,22,22,33],[23,2,28,21],[23,22,28,33],[40,18,41,29],[40,30,41,41],[29,57,30,59],[33,45,34,56],[29,2,41,5],[29,24,32,27],[29,28,32,41],[29,6,30,23],[31,6,32,23],[33,6,33,41],[34,6,35,41],[31,57,32,59],[23,38,26,42],[23,43,24,45],[40,6,41,17],[48,24,48,41],[49,6,50,23],[49,24,50,41],[42,2,42,41],[43,2,44,41],[45,2,50,5],[47,45,48,56],[39,6,39,17],[39,18,39,29],[39,30,39,41],[82,55,85,59],[82,40,85,54],[81,40,81,54],[81,55,81,59],[78,40,80,42],[78,43,80,59],[77,40,77,64],[81,15,81,26],[82,15,85,26],[78,15,79,18],[78,19,79,34],[65,43,67,46],[65,47,67,49],[65,50,67,50],[65,51,67,53],[65,54,67,54],[65,55,67,59],[55,57,56,59],[57,45,58,56],[57,57,58,59],[61,43,61,59],[62,43,64,46],[62,47,64,59],[55,45,56,56],[60,0,60,59],[29,42,58,44],[29,45,30,56],[35,45,36,56],[41,45,42,56],[41,57,42,59],[43,45,44,56],[43,57,44,59],[45,45,46,56],[45,57,46,59],[35,57,36,59],[47,57,48,59],[49,45,50,56],[49,57,50,59],[51,45,52,56],[51,57,52,59],[53,45,54,56],[53,57,54,59],[18,49,19,58],[17,39,17,43],[17,44,17,48],[17,49,17,58],[18,44,19,48],[23,46,24,57],[25,43,26,45],[25,46,26,57],[31,45,32,56],[37,45,38,56],[51,2,51,41],[52,2,58,41],[45,6,45,23],[45,24,45,41],[46,6,47,23],[46,24,47,41],[48,6,48,23],[0,0,1,60],[2,0,2,60],[8,34,10,37],[11,34,14,37],[11,38,12,59],[11,2,11,33],[12,2,14,33],[8,38,10,59],[5,2,6,36],[13,38,14,43],[13,44,14,59],[5,37,6,38],[5,39,6,45],[5,46,6,47],[5,48,6,60]]}
["信用状付輸出為替買取/取立依頼書"]
[]
["APPLICATION FOR NEGOTIATION/COLLECTION　(WITH L/C)"]
[]
[null,null,"京都中央信用金庫　御中　"]
[null,null,"別に差し入れた外国為替取引約定書に基づき、下記信用状付輸出為替の",null,null,null,null,null,null,null,null,null,null,null,null,null,null,null,null,null,null,null,null,null,null,null,null,null,null,null,null,null,null,null,null,null,null,"【",null,{"$f":"作成フォーム!M14","v":0},null,null,null,null,null,null,"】",null,"を依頼します。"]
[]
[]
[null,null,null,null,null,null,null,null,null,null,null,null,null,null,null,null,null,null,null,null,null,null,null,null,null,null,null,null,null,null,null,null,null,null,"ご依頼日",null,null,null,{"$f":"作成フォーム!M9","v":"00:00:00"}]
[]
[]
[null,null,"お名前（英文）",null,null,null,null,null,null,null,null,null,null,null,null,null,null,null,null,null,null,null,null,null,null,null,null,null,null,null,null,null,null,null,"代り金\n受領方法",null,null,null,{"$f":"作成フォーム!M78","v":0}]
[null,null,{"$f":"作成フォーム!M19","v":0}]
[null,null,null,null,null,null,null,null,null,null,null,null,null,null,null,null,null,null,null,null,null,null,null,null,null,null,null,null,null,null,null,null,null,null,null,null,null,null,"予約番号",null,null,null,null,null,{"$f":"作成フォーム!M79","v":0}]
[]
[null,null,"手形番号(DRAFT NO)",null,null,null,null,null,null,null,null,null,null,null,null,null,null,"手形金額（DRAFT AMOUNT）",null,null,null,null,null,null,null,null,null,null,null,null,null,null,null,null,"入金\n口座"]
[null,null,{"$f":"作成フォーム!M24","v":0},null,null,null,null,null,null,null,null,null,null,null,null,null,null,{"$f":"作成フォーム!M26","v":0},null,null,null,null,{"$f":"(IF(作成フォーム!M26=\"USD\",TEXT(作成フォーム!S26,\"#,##0.00\"),ROUNDDOWN(作成フォーム!S26,0)))","v":0}]
[null,null,null,null,null,null,null,null,null,null,null,null,null,null,null,null,null,null,null,null,null,null,null,null,null,null,null,null,null,null,null,null,null,null,null,null,null,null,null,"口座種類",null,null,null,null,"店番",null,null,null,null,"口座番号"]
[null,null,"建値(TERMS)",null,null,null,null,null,null,null,null,null,null,null,null,null,null,null,null,null,null,null,null,null,null,null,null,null,null,null,null,null,null,null,null,null,null,null,null,{"$f":"作成フォーム!M82","v":0},null,null,null,null,{"$f":"作成フォーム!AD82","v":0},null,null,null,null,{"$f":"作成フォーム!AJ82","v":0}]
[null,null,{"$f":"IF(作成フォーム!M29=\"その他\",作成フォーム!AT29,作成フォーム!M29)","v":0}]
[]
[null,null,"期日（TENOR）",null,null,null,null,null,null,null,null,null,null,null,null,null,null,null,null,null,null,null,"DUE DATE",null,null,null,null,null,null,null,null,null,null,null,"輸出\n前貸"]
[]
[null,null,{"$f":"作成フォーム!M27","v":0},null,null,null,null,null,null,null,null,null,null,null,null,null,null,null,null,null,null,null,{"$f":"作成フォーム!M28","v":"00:00:00"},null,null,null,null,null,null,null,null,null,null,null,null,null,null,null,{"$f":"作成フォーム!M84","v":0},null,null,null,null,"期日",null,null,{"$f":"作成フォーム!M85","v":"00:00:00"}]
[]
[null,null,null,null,null,null,null,null,null,null,null,null,null,null,null,null,null,null,null,null,null,null,null,null,null,null,null,null,null,null,null,null,null,null,null,null,null,null,null,null,null,null,null,"金額",null,null,{"$f":"作成フォーム!M86","v":0}]
[]
[]
[]
[null,null,"L/C",null,null,null,"信用状番号(L/C NO)",null,null,null,null,null,null,null,null,null,null,null,null,null,null,null,null,null,"信用状\n原本",null,null,null,{"$f":"作成フォーム!M35","v":0},null,null,null,null,null,null,null,null,null,null,null,null,null,"添付\n書類",null,null,"書類名",null,null,null,null,null,null,null,null,null,null,null,"通数"]
[]
[null,null,null,null,null,null,{"$f":"作成フォーム!M34","v":0},null,null,null,null,null,null,null,null,null,null,null,null,null,null,null,null,null,null,null,null,null,null,null,null,null,null,null,null,null,null,null,null,null,null,null,null,null,null,"Draft (Bill of Exchange)",null,null,null,null,null,null,null,null,null,null,null,{"$f":"作成フォーム!Y59","v":0}]
[]
[null,null,null,null,null,null,"発行銀行(ISSUING BANK)",null,null,null,null,null,null,null,null,null,null,null,null,null,null,null,null,null,null,null,null,null,null,null,null,null,null,null,null,null,null,null,null,null,null,null,null,null,null,"Commercial Invoice",null,null,null,null,null,null,null,null,null,null,null,{"$f":"作成フォーム!Y60","v":0}]
[null,null,null,null,null,null,{"$f":"作成フォーム!M36","v":0}]
[null,null,null,null,null,null,null,null,null,null,null,null,null,null,null,null,null,null,null,null,null,null,null,null,null,null,null,null,null,null,null,null,null,null,null,null,null,null,null,null,null,null,null,null,null,"Bill of Lading ・Air Waybill",null,null,null,null,null,null,null,null,null,null,null,{"$f":"作成フォーム!Y61","v":0}]
[null,null,null,null,null,null,"発行依頼人（APPLICANT）"]
[null,null,null,null,null,null,{"$f":"作成フォーム!M37","v":0},null,null,null,null,null,null,null,null,null,null,null,null,null,null,null,null,null,null,null,null,null,null,null,null,null,null,null,null,null,null,null,null,null,null,null,null,null,null,"Insurance Policy/ Certificate",null,null,null,null,null,null,null,null,null,null,null,{"$f":"作成フォーム!Y62","v":0}]
[]
[null,null,null,null,null,null,"発行日（ISSUE DATE）",null,null,null,null,null,null,null,null,null,null,null,"有効期限（EXPIRY DATE）",null,null,null,null,null,null,null,null,null,null,null,"船積期限（LATEST SHIPPING DATE）",null,null,null,null,null,null,null,null,null,null,null,null,null,null,"Packing List",null,null,null,null,null,null,null,null,null,null,null,{"$f":"作成フォーム!Y63","v":0}]
[null,null,null,null,null,null,{"$f":"作成フォーム!M38","v":"00:00:00"},null,null,null,null,null,null,null,null,null,null,null,{"$f":"作成フォーム!M39","v":"00:00:00"},null,null,null,null,null,null,null,null,null,null,null,{"$f":"作成フォーム!M40","v":"00:00:00"}]
[null,null,null,null,null,null,null,null,null,null,null,null,null,null,null,null,null,null,null,null,null,null,null,null,null,null,null,null,null,null,null,null,null,null,null,null,null,null,null,null,null,null,null,null,null,"Inspection Certificate",null,null,null,null,null,null,null,null,null,null,null,{"$f":"作成フォーム!Y64","v":0}]
[null,null,"商品名（MERCHANDISE）"]
[null,null,{"$f":"作成フォーム!M45","v":0},null,null,null,null,null,null,null,null,null,null,null,null,null,null,null,null,null,null,null,null,null,null,null,null,null,null,null,null,null,null,null,null,null,null,null,null,null,null,null,null,null,null,"Certificate of Origin",null,null,null,null,null,null,null,null,null,null,null,{"$f":"作成フォーム!Y65","v":0}]
[]
[null,null,"B/L",null,null,null,"船積日(SHIPPING　DATE)",null,null,null,null,null,null,null,null,null,null,null,null,null,null,null,null,null,"船名（CARRYING VESSEL）",null,null,null,null,null,null,null,null,null,null,null,null,null,null,null,null,null,null,null,null,"Certificate",null,null,null,null,null,null,null,null,null,null,null,{"$f":"作成フォーム!Y66","v":0}]
[null,null,null,null,null,null,{"$f":"作成フォーム!M50","v":"00:00:00"},null,null,null,null,null,null,null,null,null,null,null,null,null,null,null,null,null,{"$f":"作成フォーム!M51","v":0}]
[null,null,null,null,null,null,null,null,null,null,null,null,null,null,null,null,null,null,null,null,null,null,null,null,null,null,null,null,null,null,null,null,null,null,null,null,null,null,null,null,null,null,null,null,null,"Non-Negotiable B/L",null,null,null,null,null,null,null,null,null,null,null,{"$f":"作成フォーム!Y67","v":0}]
[null,null,null,null,null,null,"積出地（PORT OF LOADING）",null,null,null,null,null,null,null,null,null,null,null,null,null,null,null,null,null,"仕向地（DESTINATION）"]
[null,null,null,null,null,null,{"$f":"作成フォーム!M52","v":0},null,null,null,null,null,null,null,null,null,null,null,null,null,null,null,null,null,{"$f":"作成フォーム!M53","v":0},null,null,null,null,null,null,null,null,null,null,null,null,null,null,null,null,null,null,null,null,"Letter of Guarantee (念書)",null,null,null,null,null,null,null,null,null,null,null,{"$f":"作成フォーム!Y68","v":0}]
[]
[null,null,"Special Instructions",null,null,null,null,null,null,null,null,null,null,null,null,null,null,null,null,null,null,null,null,null,null,null,null,null,null,null,null,null,null,null,null,null,null,null,null,null,null,null,null,null,null,{"$f":"作成フォーム!E71","v":0},null,null,null,null,null,null,null,null,null,null,null,{"$f":"作成フォーム!Y71","v":0}]
[null,null,{"$f":"作成フォーム!E91","v":0}]
[null,null,null,null,null,null,null,null,null,null,null,null,null,null,null,null,null,null,null,null,null,null,null,null,null,null,null,null,null,null,null,null,null,null,null,null,null,null,null,null,null,null,null,null,null,{"$f":"作成フォーム!E72","v":0},null,null,null,null,null,null,null,null,null,null,null,{"$f":"作成フォーム!Y72","v":0}]
[]
[null,null,null,null,null,null,null,null,null,null,null,null,null,null,null,null,null,null,null,null,null,null,null,null,null,null,null,null,null,null,null,null,null,null,null,null,null,null,null,null,null,null,null,null,null,{"$f":"作成フォーム!E73","v":0},null,null,null,null,null,null,null,null,null,null,null,{"$f":"作成フォーム!Y73","v":0}]
[]
[]
[]
[]
["-----------------------------------------------------  以下当金庫使用欄  ----------------------------------------------------"]
[]
[null,null,null,null,null,null,null,null,null,null,null,null,null,null,null,null,null,null,null,null,null,null,null,null,null,null,null,null,null,null,null,null,null,null,null,null,null,null,null,null,null,null,null,"取組日",null,null,null,"西暦　　　　年　　月　　日"]
[]
[]
[null,null,null,null,null,null,null,null,null,null,null,null,null,null,null,null,null,null,null,null,null,null,null,null,null,null,null,null,null,null,null,null,null,null,null,null,null,null,null,null,null,null,null,"取組番号",null,null,null,"001",null,null,"-","BBL\nEBC",null,null,"-"]
[]
[]
[]
[]
[]
[]
[]
[]
[]
[]
[]
[null,null,null,null,null,null,null,null,null,null,null,null,null,null,null,"市場国際部",null,null,null,null,null,null,null,null,null,null,null,null,null,null,null,null,null,null,null,null,null,null,null,null,"市場国際部"]
[null,null,null,null,null,null,null,null,null,null,null,null,null,null,null,"受付日",null,null,null,"　西暦　　　　年　　　月　　　日",null,null,null,null,null,null,null,null,null,null,null,null,null,null,null,null,null,null,null,null,"受付日",null,null,"　西暦　　　　年　　　月　　　日"]
[]
[]
[null,null,null,null,null,null,null,null,null,null,null,null,null,null,null,"チェッカー印",null,null,null,null,null,null,null,null,null,null,null,null,null,null,null,null,null,null,null,null,null,null,null,null,"検　　印",null,null,null,null,null,null,null,null,null,null,null,null,null,null,"係　印"]

{"sheet":"依頼書④","index":4,"n_rows":74,"n_cols":58,"rows_kept":74,"cut":false,"hidden":false,"merged":[[29,2,41,5],[29,24,32,27],[29,28,32,41],[40,6,41,17],[40,18,41,29],[40,30,41,41],[29,6,30,23],[31,6,32,23],[33,6,33,41],[34,6,35,41],[36,6,36,41],[37,6,38,41],[39,6,39,17],[39,18,39,29],[39,30,39,41],[42,2,42,41],[43,2,44,41],[43,45,44,56],[43,57,44,59],[45,2,50,5],[45,45,46,56],[45,57,46,59],[47,45,48,56],[47,57,48,59],[49,45,50,56],[49,57,50,59],[46,6,47,23],[46,24,47,41],[48,6,48,23],[48,24,48,41],[49,6,50,23],[49,24,50,41],[73,2,87,20],[57,45,58,56],[57,57,58,59],[61,2,67,40],[61,43,61,59],[62,43,64,46],[62,47,64,59],[65,43,67,46],[65,47,67,49],[65,50,67,50],[65,51,67,53],[65,54,67,54],[65,55,67,59],[52,2,58,41],[29,42,58,44],[29,45,30,56],[29,57,30,59],[31,45,32,56],[31,57,32,59],[51,45,52,56],[51,57,52,59],[53,45,54,56],[53,57,54,59],[37,45,38,56],[55,45,56,56],[55,57,56,59],[51,2,51,41],[45,6,45,23],[21,34,28,37],[23,46,24,57],[25,46,26,57],[23,43,24,45],[25,43,26,45],[23,38,26,42],[21,2,22,21],[21,22,22,33],[23,2,28,21],[23,22,28,33],[37,57,38,59],[39,45,40,56],[39,57,40,59],[41,45,42,56],[41,57,42,59],[33,57,34,59],[35,45,36,56],[35,57,36,59],[33,45,34,56],[45,24,45,41],[0,0,1,60],[2,0,2,60],[8,34,10,37],[11,34,14,37],[11,38,12,59],[11,2,11,33],[12,2,14,33],[8,38,10,59],[5,2,6,36],[13,38,14,43],[13,44,14,59],[5,37,6,38],[5,39,6,45],[5,46,6,47],[5,48,6,60],[17,44,17,48],[17,49,17,58],[18,39,19,43],[18,44,19,48],[18,49,19,58],[18,2,18,16],[19,2,20,16],[15,34,20,37],[15,2,15,16],[15,17,15,33],[16,2,17,16],[16,17,20,21],[16,22,20,33],[17,39,17,43]]}
["信用状付輸出為替買取/取立依頼書"]
[]
["APPLICATION FOR NEGOTIATION/COLLECTION　(WITH L/C)"]
[]
[null,null,"京都中央信用金庫　御中　"]
[null,null,"別に差し入れた外国為替取引約定書に基づき、下記信用状付輸出為替の",null,null,null,null,null,null,null,null,null,null,null,null,null,null,null,null,null,null,null,null,null,null,null,null,null,null,null,null,null,null,null,null,null,null,"【",null,{"$f":"作成フォーム!M14","v":0},null,null,null,null,null,null,"】",null,"を依頼します。"]
[]
[]
[null,null,null,null,null,null,null,null,null,null,null,null,null,null,null,null,null,null,null,null,null,null,null,null,null,null,null,null,null,null,null,null,null,null,"ご依頼日",null,null,null,{"$f":"作成フォーム!M9","v":"00:00:00"}]
[]
[]
[null,null,"お名前（英文）",null,null,null,null,null,null,null,null,null,null,null,null,null,null,null,null,null,null,null,null,null,null,null,null,null,null,null,null,null,null,null,"代り金\n受領方法",null,null,null,{"$f":"作成フォーム!M78","v":0}]
[null,null,{"$f":"作成フォーム!M19","v":0}]
[null,null,null,null,null,null,null,null,null,null,null,null,null,null,null,null,null,null,null,null,null,null,null,null,null,null,null,null,null,null,null,null,null,null,null,null,null,null,"予約番号",null,null,null,null,null,{"$f":"作成フォーム!M79","v":0}]
[]
[null,null,"手形番号(DRAFT NO)",null,null,null,null,null,null,null,null,null,null,null,null,null,null,"手形金額（DRAFT AMOUNT）",null,null,null,null,null,null,null,null,null,null,null,null,null,null,null,null,"入金\n口座"]
[null,null,{"$f":"作成フォーム!M24","v":0},null,null,null,null,null,null,null,null,null,null,null,null,null,null,{"$f":"作成フォーム!M26","v":0},null,null,null,null,{"$f":"(IF(作成フォーム!M26=\"USD\",TEXT(作成フォーム!S26,\"#,##0.00\"),ROUNDDOWN(作成フォーム!S26,0)))","v":0}]
[null,null,null,null,null,null,null,null,null,null,null,null,null,null,null,null,null,null,null,null,null,null,null,null,null,null,null,null,null,null,null,null,null,null,null,null,null,null,null,"口座種類",null,null,null,null,"店番",null,null,null,null,"口座番号"]
[null,null,"建値(TERMS)",null,null,null,null,null,null,null,null,null,null,null,null,null,null,null,null,null,null,null,null,null,null,null,null,null,null,null,null,null,null,null,null,null,null,null,null,{"$f":"作成フォーム!M82","v":0},null,null,null,null,{"$f":"作成フォーム!AD82","v":0},null,null,null,null,{"$f":"作成フォーム!AJ82","v":0}]
[null,null,{"$f":"IF(作成フォーム!M29=\"その他\",作成フォーム!AT29,作成フォーム!M29)","v":0}]
[]
[null,null,"期日（TENOR）",null,null,null,null,null,null,null,null,null,null,null,null,null,null,null,null,null,null,null,"DUE DATE",null,null,null,null,null,null,null,null,null,null,null,"輸出\n前貸"]
[]
[null,null,{"$f":"作成フォーム!M27","v":0},null,null,null,null,null,null,null,null,null,null,null,null,null,null,null,null,null,null,null,{"$f":"作成フォーム!M28","v":"00:00:00"},null,null,null,null,null,null,null,null,null,null,null,null,null,null,null,{"$f":"作成フォーム!M84","v":0},null,null,null,null,"期日",null,null,{"$f":"作成フォーム!M85","v":"00:00:00"}]
[]
[null,null,null,null,null,null,null,null,null,null,null,null,null,null,null,null,null,null,null,null,null,null,null,null,null,null,null,null,null,null,null,null,null,null,null,null,null,null,null,null,null,null,null,"金額",null,null,{"$f":"作成フォーム!M86","v":0}]
[]
[]
[]
[null,null,"L/C",null,null,null,"信用状番号(L/C NO)",null,null,null,null,null,null,null,null,null,null,null,null,null,null,null,null,null,"信用状\n原本",null,null,null,{"$f":"作成フォーム!M35","v":0},null,null,null,null,null,null,null,null,null,null,null,null,null,"添付\n書類",null,null,"書類名",null,null,null,null,null,null,null,null,null,null,null,"通数"]
[]
[null,null,null,null,null,null,{"$f":"作成フォーム!M34","v":0},null,null,null,null,null,null,null,null,null,null,null,null,null,null,null,null,null,null,null,null,null,null,null,null,null,null,null,null,null,null,null,null,null,null,null,null,null,null,"Draft (Bill of Exchange)",null,null,null,null,null,null,null,null,null,null,null,{"$f":"作成フォーム!Y59","v":0}]
[]
[null,null,null,null,null,null,"発行銀行(ISSUING BANK)",null,null,null,null,null,null,null,null,null,null,null,null,null,null,null,null,null,null,null,null,null,null,null,null,null,null,null,null,null,null,null,null,null,null,null,null,null,null,"Commercial Invoice",null,null,null,null,null,null,null,null,null,null,null,{"$f":"作成フォーム!Y60","v":0}]
[null,null,null,null,null,null,{"$f":"作成フォーム!M36","v":0}]
[null,null,null,null,null,null,null,null,null,null,null,null,null,null,null,null,null,null,null,null,null,null,null,null,null,null,null,null,null,null,null,null,null,null,null,null,null,null,null,null,null,null,null,null,null,"Bill of Lading ・Air Waybill",null,null,null,null,null,null,null,null,null,null,null,{"$f":"作成フォーム!Y61","v":0}]
[null,null,null,null,null,null,"発行依頼人（APPLICANT）"]
[null,null,null,null,null,null,{"$f":"作成フォーム!M37","v":0},null,null,null,null,null,null,null,null,null,null,null,null,null,null,null,null,null,null,null,null,null,null,null,null,null,null,null,null,null,null,null,null,null,null,null,null,null,null,"Insurance Policy/ Certificate",null,null,null,null,null,null,null,null,null,null,null,{"$f":"作成フォーム!Y62","v":0}]
[]
[null,null,null,null,null,null,"発行日（ISSUE DATE）",null,null,null,null,null,null,null,null,null,null,null,"有効期限（EXPIRY DATE）",null,null,null,null,null,null,null,null,null,null,null,"船積期限（LATEST SHIPPING DATE）",null,null,null,null,null,null,null,null,null,null,null,null,null,null,"Packing List",null,null,null,null,null,null,null,null,null,null,null,{"$f":"作成フォーム!Y63","v":0}]
[null,null,null,null,null,null,{"$f":"作成フォーム!M38","v":"00:00:00"},null,null,null,null,null,null,null,null,null,null,null,{"$f":"作成フォーム!M39","v":"00:00:00"},null,null,null,null,null,null,null,null,null,null,null,{"$f":"作成フォーム!M40","v":"00:00:00"}]
[null,null,null,null,null,null,null,null,null,null,null,null,null,null,null,null,null,null,null,null,null,null,null,null,null,null,null,null,null,null,null,null,null,null,null,null,null,null,null,null,null,null,null,null,null,"Inspection Certificate",null,null,null,null,null,null,null,null,null,null,null,{"$f":"作成フォーム!Y64","v":0}]
[null,null,"商品名（MERCHANDISE）"]
[null,null,{"$f":"作成フォーム!M45","v":0},null,null,null,null,null,null,null,null,null,null,null,null,null,null,null,null,null,null,null,null,null,null,null,null,null,null,null,null,null,null,null,null,null,null,null,null,null,null,null,null,null,null,"Certificate of Origin",null,null,null,null,null,null,null,null,null,null,null,{"$f":"作成フォーム!Y65","v":0}]
[]
[null,null,"B/L",null,null,null,"船積日(SHIPPING　DATE)",null,null,null,null,null,null,null,null,null,null,null,null,null,null,null,null,null,"船名（CARRYING VESSEL）",null,null,null,null,null,null,null,null,null,null,null,null,null,null,null,null,null,null,null,null,"Certificate",null,null,null,null,null,null,null,null,null,null,null,{"$f":"作成フォーム!Y66","v":0}]
[null,null,null,null,null,null,{"$f":"作成フォーム!M50","v":"00:00:00"},null,null,null,null,null,null,null,null,null,null,null,null,null,null,null,null,null,{"$f":"作成フォーム!M51","v":0}]
[null,null,null,null,null,null,null,null,null,null,null,null,null,null,null,null,null,null,null,null,null,null,null,null,null,null,null,null,null,null,null,null,null,null,null,null,null,null,null,null,null,null,null,null,null,"Non-Negotiable B/L",null,null,null,null,null,null,null,null,null,null,null,{"$f":"作成フォーム!Y67","v":0}]
[null,null,null,null,null,null,"積出地（PORT OF LOADING）",null,null,null,null,null,null,null,null,null,null,null,null,null,null,null,null,null,"仕向地（DESTINATION）"]
[null,null,null,null,null,null,{"$f":"作成フォーム!M52","v":0},null,null,null,null,null,null,null,null,null,null,null,null,null,null,null,null,null,{"$f":"作成フォーム!M53","v":0},null,null,null,null,null,null,null,null,null,null,null,null,null,null,null,null,null,null,null,null,"Letter of Guarantee (念書)",null,null,null,null,null,null,null,null,null,null,null,{"$f":"作成フォーム!Y68","v":0}]
[]
[null,null,"Special Instructions",null,null,null,null,null,null,null,null,null,null,null,null,null,null,null,null,null,null,null,null,null,null,null,null,null,null,null,null,null,null,null,null,null,null,null,null,null,null,null,null,null,null,{"$f":"作成フォーム!E71","v":0},null,null,null,null,null,null,null,null,null,null,null,{"$f":"作成フォーム!Y71","v":0}]
[null,null,{"$f":"作成フォーム!E91","v":0}]
[null,null,null,null,null,null,null,null,null,null,null,null,null,null,null,null,null,null,null,null,null,null,null,null,null,null,null,null,null,null,null,null,null,null,null,null,null,null,null,null,null,null,null,null,null,{"$f":"作成フォーム!E72","v":0},null,null,null,null,null,null,null,null,null,null,null,{"$f":"作成フォーム!Y72","v":0}]
[]
[null,null,null,null,null,null,null,null,null,null,null,null,null,null,null,null,null,null,null,null,null,null,null,null,null,null,null,null,null,null,null,null,null,null,null,null,null,null,null,null,null,null,null,null,null,{"$f":"作成フォーム!E73","v":0},null,null,null,null,null,null,null,null,null,null,null,{"$f":"作成フォーム!Y73","v":0}]
[]
[]
[]
[]
[]
[null,null,"毎度ご利用いただきましてありがとうざいます。\n本票は、お客様控えでございますので、お手元に保管してください。\n引き続きご愛顧賜りますようお願い申し上げます。",null,null,null,null,null,null,null,null,null,null,null,null,null,null,null,null,null,null,null,null,null,null,null,null,null,null,null,null,null,null,null,null,null,null,null,null,null,null,null,null,"当金庫使用欄"]
[null,null,null,null,null,null,null,null,null,null,null,null,null,null,null,null,null,null,null,null,null,null,null,null,null,null,null,null,null,null,null,null,null,null,null,null,null,null,null,null,null,null,null,"取組日",null,null,null,"西暦　　　　年　　月　　日"]
[]
[]
[null,null,null,null,null,null,null,null,null,null,null,null,null,null,null,null,null,null,null,null,null,null,null,null,null,null,null,null,null,null,null,null,null,null,null,null,null,null,null,null,null,null,null,"取組番号",null,null,null,"001",null,null,"-","BBL\nEBC",null,null,"-"]
[]
[]
[]
[]
[]
[]
[]
[null,null,"市場国際部受付印"]

{"sheet":"手形","index":5,"n_rows":82,"n_cols":57,"rows_kept":82,"cut":false,"hidden":false,"merged":[[13,2,15,6],[13,7,15,23],[13,24,15,30],[13,31,15,59],[16,2,18,7],[16,8,18,39],[16,40,18,59],[2,9,4,52],[5,2,6,4],[5,5,6,16],[8,2,11,5],[8,6,11,12],[8,13,11,26],[8,30,11,43],[8,46,11,59],[19,2,22,5],[19,6,22,15],[19,16,22,55],[19,56,22,59],[23,2,26,27],[23,29,26,59],[27,2,30,11],[27,13,30,59],[31,2,34,10],[31,12,34,29],[31,31,34,39],[31,41,34,59],[58,2,60,6],[58,7,60,23],[58,24,60,30],[58,31,60,59],[36,2,39,4],[36,26,42,48],[36,54,42,59],[47,9,49,52],[50,2,51,4],[50,5,51,16],[53,2,56,5],[53,6,56,12],[53,13,56,26],[53,30,56,43],[53,46,56,59],[36,5,42,20],[61,2,63,7],[61,8,63,39],[61,40,63,59],[64,2,67,5],[64,6,67,15],[64,16,67,55],[64,56,67,59],[81,2,84,4],[81,26,87,48],[68,2,71,27],[68,29,71,59],[72,2,75,11],[72,13,75,59],[76,2,79,10],[76,12,79,29],[76,31,79,39],[76,41,79,59],[81,5,87,20]]}
[]
[]
[null,null,null,null,null,null,null,null,null,"B I L L   O F   E X C H A N G E"]
[]
[]
[null,null,"No.　",null,null,{"$f":"作成フォーム!M24","v":0}]
[]
[]
[null,null," FOR",null,null,null,{"$f":"作成フォーム!M26","v":0},null,null,null,null,null,null,{"$f":"(IF(作成フォーム!M26=\"USD\",TEXT(作成フォーム!S26,\"#,##0.00\"),ROUNDDOWN(作成フォーム!S26,0)))","v":0},null,null,null,null,null,null,null,null,null,null,null,null,null,null,null,null,{"$f":"作成フォーム!M102","v":0},null,null,null,null,null,null,null,null,null,null,null,null,null,null,null,{"$f":"作成フォーム!M100","v":"00:00:00"}]
[]
[]
[]
[]
[null,null,"At",null,null,null,null,{"$f":"作成フォーム!M110","v":0},null,null,null,null,null,null,null,null,null,null,null,null,null,null,null,null,{"$f":"作成フォーム!M112","v":0},null,null,null,null,null,null,"of this FIRST Bill of Exchange (SECOND being unpaid)"]
[]
[]
[null,null,"pay to",null,null,null,null,null,"THE KYOTO CHUO SHINKIN BANK",null,null,null,null,null,null,null,null,null,null,null,null,null,null,null,null,null,null,null,null,null,null,null,null,null,null,null,null,null,null,null,"or order the sum of"]
[]
[]
[null,null,"SAY",null,null,null,{"$f":"IF(作成フォーム!M26=\"\",\"\",IF(作成フォーム!M26=\"JPY\",\"JAPANESE YEN\",\"US DOLLAR\"))","v":""},null,null,null,null,null,null,null,null,null,{"$f":"SpellNumber(IF(作成フォーム!M26=\"USD\",TEXT(作成フォーム!S26,\"0.00\"),ROUNDDOWN(作成フォーム!S26,0)))","v":""},null,null,null,null,null,null,null,null,null,null,null,null,null,null,null,null,null,null,null,null,null,null,null,null,null,null,null,null,null,null,null,null,null,null,null,null,null,null,null,"ONLY"]
[]
[]
[]
[null,null,"Value received and charge the same to account of",null,null,null,null,null,null,null,null,null,null,null,null,null,null,null,null,null,null,null,null,null,null,null,null,null,null,{"$f":"作成フォーム!M104","v":0}]
[]
[]
[]
[null,null," Drawn under",null,null,null,null,null,null,null,null,null,null,{"$f":"作成フォーム!M106","v":0}]
[]
[]
[]
[null,null," L／C　No.",null,null,null,null,null,null,null,null,null,{"$f":"作成フォーム!M34","v":0},null,null,null,null,null,null,null,null,null,null,null,null,null,null,null,null,null,null,"Dated",null,null,null,null,null,null,null,null,null,{"$f":"作成フォーム!M38","v":"00:00:00"}]
[]
[]
[]
[]
[null,null,"To",null,null,{"$f":"作成フォーム!M108","v":0},null,null,null,null,null,null,null,null,null,null,null,null,null,null,null,null,null,null,null,null,null,null,null,null,null,null,null,null,null,null,null,null,null,null,null,null,null,null,null,null,null,null,null,null,null,null,null,null,"REVENUE 　　　STAMP"]
[]
[]
[]
[]
[]
[]
[]
[]
[]
[]
[null,null,null,null,null,null,null,null,null,"B I L L   O F   E X C H A N G E"]
[]
[]
[null,null,"No.　",null,null,{"$f":"作成フォーム!M24","v":0}]
[]
[]
[null,null," FOR",null,null,null,{"$f":"作成フォーム!M26","v":0},null,null,null,null,null,null,{"$f":"(IF(作成フォーム!M26=\"USD\",TEXT(作成フォーム!S26,\"#,##0.00\"),ROUNDDOWN(作成フォーム!S26,0)))","v":0},null,null,null,null,null,null,null,null,null,null,null,null,null,null,null,null,{"$f":"作成フォーム!M102","v":0},null,null,null,null,null,null,null,null,null,null,null,null,null,null,null,{"$f":"作成フォーム!M100","v":"00:00:00"}]
[]
[]
[]
[]
[null,null,"At",null,null,null,null,{"$f":"作成フォーム!M110","v":0},null,null,null,null,null,null,null,null,null,null,null,null,null,null,null,null,{"$f":"作成フォーム!M112","v":0},null,null,null,null,null,null,"of this SECOND Bill of Exchange (FIRST being unpaid)"]
[]
[]
[null,null,"pay to",null,null,null,null,null,"THE KYOTO CHUO SHINKIN BANK",null,null,null,null,null,null,null,null,null,null,null,null,null,null,null,null,null,null,null,null,null,null,null,null,null,null,null,null,null,null,null,"or order the sum of"]
[]
[]
[null,null,"SAY",null,null,null,{"$f":"IF(作成フォーム!M26=\"\",\"\",IF(作成フォーム!M26=\"JPY\",\"JAPANESE YEN\",\"US DOLLAR\"))","v":""},null,null,null,null,null,null,null,null,null,{"$f":"SpellNumber(IF(作成フォーム!M26=\"USD\",TEXT(作成フォーム!S26,\"0.00\"),ROUNDDOWN(作成フォーム!S26,0)))","v":""},null,null,null,null,null,null,null,null,null,null,null,null,null,null,null,null,null,null,null,null,null,null,null,null,null,null,null,null,null,null,null,null,null,null,null,null,null,null,null,"ONLY"]
[]
[]
[]
[null,null,"Value received and charge the same to account of",null,null,null,null,null,null,null,null,null,null,null,null,null,null,null,null,null,null,null,null,null,null,null,null,null,null,{"$f":"作成フォーム!M104","v":0}]
[]
[]
[]
[null,null," Drawn under",null,null,null,null,null,null,null,null,null,null,{"$f":"作成フォーム!M106","v":0}]
[]
[]
[]
[null,null," L／C　No.",null,null,null,null,null,null,null,null,null,{"$f":"作成フォーム!M34","v":0},null,null,null,null,null,null,null,null,null,null,null,null,null,null,null,null,null,null,"Dated",null,null,null,null,null,null,null,null,null,{"$f":"作成フォーム!M38","v":"00:00:00"}]
[]
[]
[]
[]
[null,null,"To",null,null,{"$f":"作成フォーム!M108","v":0}]